[Event "Titled Tuesday Blitz February 15 Early 2022"]
[White "Kuzubov, Yuriy"]
[Black "Tregubov, Pavel V."]
[WhiteFideId "14112906"]
[BlackFideId "4115341"]
[WhiteElo "2548"]
[BlackElo "2341"]
[Result "0-1"]
[Round "04"]
[TimeControl "180+1"]
[Date "2022.02.15"]
[WhiteClock "0:00:05"]
[BlackClock "0:00:12"]

1. d4 {[%clk 0:03:00]}  Nf6 {[%clk 0:02:58]} 2. c4 {[%clk 0:02:59]}  e6 {[%clk 0:02:58]} 3. Nf3 {[%clk 0:02:59]}  Bb4+ {[%clk 0:02:58]} 4. Bd2 {[%clk 0:02:58]}  Qe7 {[%clk 0:02:59]} 5. g3 {[%clk 0:02:59]}  Bxd2+ {[%clk 0:02:59]} 6. Qxd2 {[%clk 0:02:57]}  Nc6 {[%clk 0:02:57]} 7. Nc3 {[%clk 0:02:53]}  d5 {[%clk 0:02:57]} 8. Ne5 {[%clk 0:02:43]}  dxc4 {[%clk 0:02:49]} 9. Bg2 {[%clk 0:02:32]}  O-O {[%clk 0:02:48]} 10. Rd1 {[%clk 0:02:23]}  Nxe5 {[%clk 0:02:39]} 11. dxe5 {[%clk 0:02:23]}  Nd7 {[%clk 0:02:40]} 12. f4 {[%clk 0:02:22]}  Rb8 {[%clk 0:02:36]} 13. Ne4 {[%clk 0:01:46]}  b5 {[%clk 0:02:11]} 14. Qc2 {[%clk 0:01:38]}  h6 {[%clk 0:02:08]} 15. g4 {[%clk 0:01:19]}  Bb7 {[%clk 0:02:06]} 16. g5 {[%clk 0:01:16]}  Bxe4 {[%clk 0:01:46]} 17. Qxe4 {[%clk 0:01:17]}  hxg5 {[%clk 0:01:39]} 18. fxg5 {[%clk 0:01:14]}  Rbd8 {[%clk 0:01:26]} 19. g6 {[%clk 0:00:43]}  fxg6 {[%clk 0:01:21]} 20. Bf3 {[%clk 0:00:40]}  Nc5 {[%clk 0:01:11]} 21. Qg4 {[%clk 0:00:21]}  Rxd1+ {[%clk 0:01:02]} 22. Kxd1 {[%clk 0:00:22]}  Qf7 {[%clk 0:00:47]} 23. Rg1 {[%clk 0:00:17]}  Qf5 {[%clk 0:00:37]} 24. Qd4 {[%clk 0:00:14]}  Na4 {[%clk 0:00:21]} 25. Bg4 {[%clk 0:00:10]}  Qb1+ {[%clk 0:00:19]} 26. Kd2 {[%clk 0:00:11]}  Qxb2+ {[%clk 0:00:18]} 27. Qxb2 {[%clk 0:00:10]}  Nxb2 {[%clk 0:00:18]} 28. Bxe6+ {[%clk 0:00:11]}  Kh7 {[%clk 0:00:18]} 29. Kc3 {[%clk 0:00:08]}  Na4+ {[%clk 0:00:17]} 30. Kb4 {[%clk 0:00:08]}  a6 {[%clk 0:00:15]} 31. Bd7 {[%clk 0:00:07]}  Nb6 {[%clk 0:00:14]} 32. e6 {[%clk 0:00:07]}  Rd8 {[%clk 0:00:13]} 33. e7 {[%clk 0:00:06]}  Nd5+ {[%clk 0:00:13]} 34. Kc5 {[%clk 0:00:05]}  Nxe7 {[%clk 0:00:14]} 35. Be6 {[%clk 0:00:06]}  Rd6 {[%clk 0:00:14]} 36. Bf7 {[%clk 0:00:06]}  Rf6 {[%clk 0:00:13]} 37. Be8 {[%clk 0:00:06]}  Rf5+ {[%clk 0:00:14]} 38. Kd4 {[%clk 0:00:06]}  Rd5+ {[%clk 0:00:13]} 39. Ke4 {[%clk 0:00:06]}  Rd2 {[%clk 0:00:14]} 40. e3 {[%clk 0:00:05]}  Rxa2 {[%clk 0:00:14]} 41. Rg4 {[%clk 0:00:04]}  Kg8 {[%clk 0:00:14]} 42. Bd7 {[%clk 0:00:04]}  Kf7 {[%clk 0:00:13]} 43. Rf4+ {[%clk 0:00:04]}  Nf5 {[%clk 0:00:14]} 44. h4 {[%clk 0:00:05]}  Ke7 {[%clk 0:00:14]} 45. Bc6 {[%clk 0:00:05]}  Kd6 {[%clk 0:00:13]} 46. Be8 {[%clk 0:00:03]}  Ra4 {[%clk 0:00:13]} 47. Bxg6 {[%clk 0:00:03]}  c3+ {[%clk 0:00:13]} 48. Kd3 {[%clk 0:00:03]}  Rxf4 {[%clk 0:00:13]} 49. exf4 {[%clk 0:00:04]}  Nxh4 {[%clk 0:00:14]} 50. Be4 {[%clk 0:00:05]}  b4 {[%clk 0:00:14]} 51. Kc4 {[%clk 0:00:05]}  Ng2 {[%clk 0:00:12]} 0-1


[Site "https://www.chess.com"]

[Event "Titled Tuesday Blitz February 15 Early 2022"]
[White "Lakshmi C"]
[Black "Vivas Zamora, Fabian Ernesto"]
[WhiteFideId "25035347"]
[BlackFideId "3902480"]
[WhiteElo "1775"]
[BlackElo "1966"]
[Result "1-0"]
[Round "04"]
[TimeControl "180+1"]
[Date "2022.02.15"]
[WhiteClock "0:00:05"]
[BlackClock "0:00:01"]

1. e4 {[%clk 0:02:59]}  e5 {[%clk 0:02:59]} 2. Nf3 {[%clk 0:02:57]}  Nc6 {[%clk 0:02:59]} 3. Bb5 {[%clk 0:02:53]}  Nf6 {[%clk 0:02:59]} 4. O-O {[%clk 0:02:50]}  Nxe4 {[%clk 0:02:58]} 5. Re1 {[%clk 0:02:48]}  Nd6 {[%clk 0:02:55]} 6. Nxe5 {[%clk 0:02:47]}  Be7 {[%clk 0:02:55]} 7. Nxc6 {[%clk 0:02:43]}  dxc6 {[%clk 0:02:56]} 8. Bd3 {[%clk 0:02:40]}  O-O {[%clk 0:02:45]} 9. Nc3 {[%clk 0:02:40]}  Bf5 {[%clk 0:02:34]} 10. Be2 {[%clk 0:02:34]}  Bf6 {[%clk 0:02:11]} 11. d3 {[%clk 0:02:28]}  Re8 {[%clk 0:02:03]} 12. Be3 {[%clk 0:02:24]}  Bg6 {[%clk 0:01:52]} 13. Qd2 {[%clk 0:02:22]}  Nf5 {[%clk 0:01:50]} 14. Bf4 {[%clk 0:02:22]}  Nd4 {[%clk 0:01:48]} 15. Bg4 {[%clk 0:02:20]}  h5 {[%clk 0:01:39]} 16. Bh3 {[%clk 0:02:12]}  Re7 {[%clk 0:01:26]} 17. Ne4 {[%clk 0:01:25]}  Bxe4 {[%clk 0:01:22]} 18. dxe4 {[%clk 0:01:21]}  c5 {[%clk 0:01:03]} 19. c3 {[%clk 0:01:19]}  Nc6 {[%clk 0:00:59]} 20. Qe3 {[%clk 0:01:18]}  b6 {[%clk 0:00:29]} 21. Kh1 {[%clk 0:00:47]}  Qe8 {[%clk 0:00:18]} 22. f3 {[%clk 0:00:43]}  Rd8 {[%clk 0:00:17]} 23. Rad1 {[%clk 0:00:43]}  Ne5 {[%clk 0:00:14]} 24. Bg3 {[%clk 0:00:38]}  g6 {[%clk 0:00:13]} 25. Qe2 {[%clk 0:00:36]}  Rxd1 {[%clk 0:00:11]} 26. Rxd1 {[%clk 0:00:36]}  Qa4 {[%clk 0:00:11]} 27. b3 {[%clk 0:00:35]}  Qa5 {[%clk 0:00:09]} 28. Qd2 {[%clk 0:00:28]}  Nc6 {[%clk 0:00:09]} 29. Bd7 {[%clk 0:00:23]}  Bxc3 {[%clk 0:00:04]} 30. Qg5 {[%clk 0:00:22]}  Qxa2 {[%clk 0:00:01]} 31. Bxc6 {[%clk 0:00:20]}  Qxb3 {[%clk 0:00:01]} 32. Rd8+ {[%clk 0:00:17]}  Kg7 {[%clk 0:00:01]} 33. h4 {[%clk 0:00:15]}  Bf6 {[%clk 0:00:01]} 34. Qf4 {[%clk 0:00:13]}  Qb1+ {[%clk 0:00:01]} 35. Kh2 {[%clk 0:00:13]}  Qa1 {[%clk 0:00:01]} 36. Qd2 {[%clk 0:00:06]}  Bd4 {[%clk 0:00:01]} 37. Bd5 {[%clk 0:00:05]} 1-0


[Site "https://www.chess.com"]

[Event "Titled Tuesday Blitz February 15 Early 2022"]
[White "Le, Tuan Minh"]
[Black "Riehle, Marco"]
[WhiteFideId "12401153"]
[BlackFideId "12904392"]
[WhiteElo "2450"]
[BlackElo "2462"]
[Result "1-0"]
[Round "04"]
[TimeControl "180+1"]
[Date "2022.02.15"]
[WhiteClock "0:00:16"]
[BlackClock "0:00:02"]

1. d4 {[%clk 0:02:39]}  d5 {[%clk 0:02:49]} 2. Nf3 {[%clk 0:02:38]}  Nf6 {[%clk 0:02:45]} 3. Bf4 {[%clk 0:02:24]}  e6 {[%clk 0:02:42]} 4. e3 {[%clk 0:02:24]}  Bd6 {[%clk 0:02:38]} 5. Bg3 {[%clk 0:02:24]}  O-O {[%clk 0:02:38]} 6. c4 {[%clk 0:02:24]}  c6 {[%clk 0:02:31]} 7. Nc3 {[%clk 0:02:24]}  Re8 {[%clk 0:02:28]} 8. Bd3 {[%clk 0:02:23]}  dxc4 {[%clk 0:02:27]} 9. Bxc4 {[%clk 0:02:24]}  b5 {[%clk 0:02:28]} 10. Bd3 {[%clk 0:02:23]}  a6 {[%clk 0:02:23]} 11. Rc1 {[%clk 0:02:21]}  Bb7 {[%clk 0:02:16]} 12. O-O {[%clk 0:02:20]}  Bxg3 {[%clk 0:02:06]} 13. hxg3 {[%clk 0:02:21]}  Nbd7 {[%clk 0:02:06]} 14. Ne4 {[%clk 0:02:21]}  e5 {[%clk 0:01:57]} 15. Nd6 {[%clk 0:02:16]}  e4 {[%clk 0:01:40]} 16. Nxb7 {[%clk 0:02:16]}  Qc7 {[%clk 0:01:36]} 17. Nc5 {[%clk 0:02:16]}  Nxc5 {[%clk 0:01:34]} 18. Rxc5 {[%clk 0:02:17]}  exd3 {[%clk 0:01:29]} 19. Qxd3 {[%clk 0:02:18]}  Nd7 {[%clk 0:01:24]} 20. Rc2 {[%clk 0:02:13]}  Rac8 {[%clk 0:01:13]} 21. Rfc1 {[%clk 0:02:10]}  Qb7 {[%clk 0:01:13]} 22. Qf5 {[%clk 0:02:01]}  h6 {[%clk 0:01:07]} 23. Nd2 {[%clk 0:01:50]}  Re6 {[%clk 0:00:42]} 24. Nb3 {[%clk 0:01:48]}  Rce8 {[%clk 0:00:40]} 25. Na5 {[%clk 0:01:46]}  Qb6 {[%clk 0:00:38]} 26. Nxc6 {[%clk 0:01:46]}  Nf6 {[%clk 0:00:34]} 27. Ne5 {[%clk 0:01:43]}  b4 {[%clk 0:00:33]} 28. Rc7 {[%clk 0:01:41]}  Rf8 {[%clk 0:00:30]} 29. Rc8 {[%clk 0:01:32]}  Ree8 {[%clk 0:00:29]} 30. Rxe8 {[%clk 0:01:32]}  Rxe8 {[%clk 0:00:30]} 31. g4 {[%clk 0:01:32]}  a5 {[%clk 0:00:28]} 32. g5 {[%clk 0:01:29]}  hxg5 {[%clk 0:00:29]} 33. Qxg5 {[%clk 0:01:30]}  a4 {[%clk 0:00:26]} 34. Qf5 {[%clk 0:01:30]}  a3 {[%clk 0:00:26]} 35. b3 {[%clk 0:01:28]}  Qa6 {[%clk 0:00:24]} 36. Qd3 {[%clk 0:01:26]}  Qd6 {[%clk 0:00:23]} 37. Qc4 {[%clk 0:01:26]}  Rxe5 {[%clk 0:00:14]} 38. dxe5 {[%clk 0:01:25]}  Qxe5 {[%clk 0:00:14]} 39. Qd4 {[%clk 0:00:54]}  Qh5 {[%clk 0:00:13]} 40. f3 {[%clk 0:00:37]}  Qg5 {[%clk 0:00:09]} 41. Rc8+ {[%clk 0:00:29]}  Kh7 {[%clk 0:00:09]} 42. Rc5 {[%clk 0:00:29]}  Qg3 {[%clk 0:00:05]} 43. Rc1 {[%clk 0:00:22]}  Qg5 {[%clk 0:00:03]} 44. Kf2 {[%clk 0:00:22]}  Qh5 {[%clk 0:00:02]} 45. Qxb4 {[%clk 0:00:20]}  Qh6 {[%clk 0:00:01]} 46. Qf4 {[%clk 0:00:16]}  Qh5 {[%clk 0:00:01]} 47. Qd4 {[%clk 0:00:16]}  Kg8 {[%clk 0:00:02]} 48. b4 {[%clk 0:00:16]}  g6 {[%clk 0:00:02]} 49. Qxf6 {[%clk 0:00:16]}  Kh7 {[%clk 0:00:02]} 50. Qxf7+ {[%clk 0:00:15]}  Kh6 {[%clk 0:00:02]} 51. Qf8+ {[%clk 0:00:16]}  Kh7 {[%clk 0:00:02]} 52. Rc7# {[%clk 0:00:16]} 1-0


[Site "https://www.chess.com"]

[Event "Titled Tuesday Blitz February 15 Early 2022"]
[White "Lewtak, Damian"]
[Black "Martin Carmona, Gaston Manuel"]
[WhiteFideId "1141724"]
[BlackFideId "22284567"]
[WhiteElo "2361"]
[BlackElo "2161"]
[Result "0-1"]
[Round "04"]
[TimeControl "180+1"]
[Date "2022.02.15"]
[WhiteClock "0:00:10"]
[BlackClock "0:00:44"]

1. d4 {[%clk 0:02:57]}  Nf6 {[%clk 0:02:57]} 2. c4 {[%clk 0:02:57]}  g6 {[%clk 0:02:57]} 3. Nc3 {[%clk 0:02:58]}  Bg7 {[%clk 0:02:51]} 4. Nf3 {[%clk 0:02:58]}  d6 {[%clk 0:02:52]} 5. e4 {[%clk 0:02:56]}  O-O {[%clk 0:02:52]} 6. Be2 {[%clk 0:02:56]}  Nbd7 {[%clk 0:02:42]} 7. O-O {[%clk 0:02:33]}  e5 {[%clk 0:02:38]} 8. d5 {[%clk 0:02:31]}  Nc5 {[%clk 0:02:35]} 9. Qc2 {[%clk 0:02:22]}  a5 {[%clk 0:02:31]} 10. Be3 {[%clk 0:02:15]}  b6 {[%clk 0:02:29]} 11. b3 {[%clk 0:02:07]}  Ng4 {[%clk 0:02:22]} 12. Bxc5 {[%clk 0:02:06]}  bxc5 {[%clk 0:02:23]} 13. h3 {[%clk 0:02:03]}  Nh6 {[%clk 0:02:22]} 14. Ne1 {[%clk 0:02:02]}  f5 {[%clk 0:02:22]} 15. Nd3 {[%clk 0:01:57]}  Nf7 {[%clk 0:02:09]} 16. Rae1 {[%clk 0:01:52]}  f4 {[%clk 0:02:09]} 17. Bg4 {[%clk 0:01:48]}  Bb7 {[%clk 0:02:03]} 18. a3 {[%clk 0:01:40]}  h5 {[%clk 0:02:03]} 19. Be2 {[%clk 0:01:34]}  Qh4 {[%clk 0:01:57]} 20. b4 {[%clk 0:01:31]}  axb4 {[%clk 0:01:57]} 21. axb4 {[%clk 0:01:32]}  cxb4 {[%clk 0:01:56]} 22. Nxb4 {[%clk 0:01:31]}  g5 {[%clk 0:01:57]} 23. Qd1 {[%clk 0:01:27]}  g4 {[%clk 0:01:36]} 24. hxg4 {[%clk 0:01:26]}  Ra3 {[%clk 0:01:28]} 25. Nb5 {[%clk 0:01:25]}  Rg3 {[%clk 0:01:28]} 26. Bd3 {[%clk 0:01:02]}  Bc8 {[%clk 0:00:47]} 27. fxg3 {[%clk 0:00:19]}  fxg3 {[%clk 0:00:48]} 28. Rf5 {[%clk 0:00:15]}  Bxf5 {[%clk 0:00:41]} 29. exf5 {[%clk 0:00:11]}  Qh2+ {[%clk 0:00:41]} 30. Kf1 {[%clk 0:00:11]}  Qh1+ {[%clk 0:00:42]} 31. Ke2 {[%clk 0:00:10]}  Qxg2+ {[%clk 0:00:43]} 32. Ke3 {[%clk 0:00:10]}  Qf2+ {[%clk 0:00:44]} 0-1


[Site "https://www.chess.com"]

[Event "Titled Tuesday Blitz February 15 Early 2022"]
[White "Lodici, Lorenzo"]
[Black "Van Foreest, Jorden"]
[WhiteFideId "884189"]
[BlackFideId "1039784"]
[WhiteElo "2265"]
[BlackElo "2609"]
[Result "1-0"]
[Round "04"]
[TimeControl "180+1"]
[Date "2022.02.15"]
[WhiteClock "0:00:04"]
[BlackClock "0:00:02"]

1. f4 {[%clk 0:03:00]}  Nc6 {[%clk 0:02:55]} 2. Nf3 {[%clk 0:03:00]}  d5 {[%clk 0:02:55]} 3. g3 {[%clk 0:03:00]}  Bg4 {[%clk 0:02:54]} 4. Bg2 {[%clk 0:03:00]}  Qd7 {[%clk 0:02:54]} 5. h3 {[%clk 0:02:58]}  Bxf3 {[%clk 0:02:53]} 6. Bxf3 {[%clk 0:02:58]}  e5 {[%clk 0:02:54]} 7. fxe5 {[%clk 0:02:58]}  Nxe5 {[%clk 0:02:55]} 8. Bg2 {[%clk 0:02:58]}  Bd6 {[%clk 0:02:54]} 9. e3 {[%clk 0:02:55]}  Nf6 {[%clk 0:02:52]} 10. Nc3 {[%clk 0:02:50]}  c6 {[%clk 0:02:47]} 11. Qe2 {[%clk 0:02:39]}  Ng6 {[%clk 0:02:46]} 12. g4 {[%clk 0:02:37]}  Bg3+ {[%clk 0:02:45]} 13. Kd1 {[%clk 0:02:37]}  O-O-O {[%clk 0:02:45]} 14. d4 {[%clk 0:02:32]}  Rhe8 {[%clk 0:02:40]} 15. Bd2 {[%clk 0:02:31]}  Kb8 {[%clk 0:02:29]} 16. Kc1 {[%clk 0:02:28]}  h6 {[%clk 0:02:19]} 17. Rf1 {[%clk 0:02:27]}  Re6 {[%clk 0:02:19]} 18. Qd3 {[%clk 0:02:11]}  Rde8 {[%clk 0:02:13]} 19. b3 {[%clk 0:02:11]}  Bh4 {[%clk 0:02:13]} 20. Kb2 {[%clk 0:02:10]}  Bg5 {[%clk 0:02:14]} 21. Rae1 {[%clk 0:02:11]}  Qe7 {[%clk 0:02:11]} 22. Nd1 {[%clk 0:01:10]}  Ne4 {[%clk 0:02:08]} 23. Bxe4 {[%clk 0:01:10]}  Rxe4 {[%clk 0:02:08]} 24. c4 {[%clk 0:01:11]}  Bh4 {[%clk 0:02:06]} 25. Nf2 {[%clk 0:01:04]}  Re6 {[%clk 0:01:45]} 26. cxd5 {[%clk 0:01:02]}  cxd5 {[%clk 0:01:45]} 27. Rc1 {[%clk 0:01:02]}  a6 {[%clk 0:01:39]} 28. Nd1 {[%clk 0:01:00]}  Bg5 {[%clk 0:01:32]} 29. a3 {[%clk 0:00:49]}  Qd7 {[%clk 0:01:28]} 30. Rc5 {[%clk 0:00:45]}  Nh4 {[%clk 0:01:26]} 31. Be1 {[%clk 0:00:33]}  Ng2 {[%clk 0:01:25]} 32. Bg3+ {[%clk 0:00:33]}  Ka7 {[%clk 0:01:23]} 33. Rc7 {[%clk 0:00:33]}  Qd8 {[%clk 0:01:04]} 34. Rfxf7 {[%clk 0:00:29]}  R8e7 {[%clk 0:01:04]} 35. Rfxe7 {[%clk 0:00:27]}  Rxe7 {[%clk 0:01:04]} 36. Rxe7 {[%clk 0:00:26]}  Qxe7 {[%clk 0:01:05]} 37. Be5 {[%clk 0:00:24]}  Qf7 {[%clk 0:00:55]} 38. e4 {[%clk 0:00:24]}  Nf4 {[%clk 0:00:45]} 39. Qf3 {[%clk 0:00:17]}  dxe4 {[%clk 0:00:44]} 40. Qxe4 {[%clk 0:00:18]}  Nd5 {[%clk 0:00:45]} 41. Qf5 {[%clk 0:00:16]}  Qe7 {[%clk 0:00:37]} 42. Qc8 {[%clk 0:00:14]}  Bf4 {[%clk 0:00:26]} 43. Qb8+ {[%clk 0:00:11]}  Kb6 {[%clk 0:00:26]} 44. Bxf4 {[%clk 0:00:12]}  Qe4 {[%clk 0:00:14]} 45. Qd6+ {[%clk 0:00:11]}  Ka7 {[%clk 0:00:15]} 46. Qb8+ {[%clk 0:00:10]}  Kb6 {[%clk 0:00:15]} 47. Qd8+ {[%clk 0:00:07]}  Kc6 {[%clk 0:00:02]} 48. Qd6+ {[%clk 0:00:06]}  Kb5 {[%clk 0:00:02]} 49. a4+ {[%clk 0:00:05]}  Ka5 {[%clk 0:00:02]} 50. Qc5+ {[%clk 0:00:06]}  b5 {[%clk 0:00:02]} 51. Bc7+ {[%clk 0:00:05]}  Nxc7 {[%clk 0:00:02]} 52. b4+ {[%clk 0:00:04]} 1-0


[Site "https://www.chess.com"]

[Event "Titled Tuesday Blitz February 15 Early 2022"]
[White "Magallanes, Rey Jomar"]
[Black "Bon, Michael"]
[WhiteFideId "5205948"]
[BlackFideId "620696"]
[WhiteElo "2209"]
[BlackElo "2452"]
[Result "1-0"]
[Round "04"]
[TimeControl "180+1"]
[Date "2022.02.15"]
[WhiteClock "0:00:36"]
[BlackClock "0:00:04"]

1. d4 {[%clk 0:02:59]}  Nf6 {[%clk 0:02:59]} 2. c4 {[%clk 0:02:59]}  c5 {[%clk 0:03:00]} 3. d5 {[%clk 0:02:59]}  b5 {[%clk 0:03:00]} 4. cxb5 {[%clk 0:02:59]}  a6 {[%clk 0:03:00]} 5. bxa6 {[%clk 0:03:00]}  Bxa6 {[%clk 0:03:00]} 6. Nc3 {[%clk 0:03:00]}  g6 {[%clk 0:03:00]} 7. Nf3 {[%clk 0:02:56]}  d6 {[%clk 0:02:59]} 8. h3 {[%clk 0:02:53]}  Bg7 {[%clk 0:03:00]} 9. e4 {[%clk 0:02:52]}  Bxf1 {[%clk 0:02:59]} 10. Kxf1 {[%clk 0:02:53]}  Nbd7 {[%clk 0:02:59]} 11. Kg1 {[%clk 0:02:51]}  O-O {[%clk 0:02:58]} 12. Kh2 {[%clk 0:02:52]}  Qa5 {[%clk 0:02:53]} 13. Rb1 {[%clk 0:02:51]}  Rfb8 {[%clk 0:02:52]} 14. Bd2 {[%clk 0:02:51]}  Ne8 {[%clk 0:02:42]} 15. Qc1 {[%clk 0:02:46]}  Nc7 {[%clk 0:02:38]} 16. Re1 {[%clk 0:02:40]}  Nb5 {[%clk 0:02:38]} 17. a3 {[%clk 0:02:26]}  Nxc3 {[%clk 0:02:13]} 18. Bxc3 {[%clk 0:02:27]}  Bxc3 {[%clk 0:02:12]} 19. Qxc3 {[%clk 0:02:21]}  Qxc3 {[%clk 0:02:04]} 20. bxc3 {[%clk 0:02:21]}  Rxa3 {[%clk 0:02:03]} 21. Rxb8+ {[%clk 0:02:21]}  Nxb8 {[%clk 0:02:04]} 22. Rb1 {[%clk 0:02:17]}  Ra8 {[%clk 0:01:29]} 23. e5 {[%clk 0:02:09]}  Nd7 {[%clk 0:01:17]} 24. exd6 {[%clk 0:01:53]}  exd6 {[%clk 0:01:18]} 25. Rb7 {[%clk 0:01:53]}  Rd8 {[%clk 0:01:18]} 26. Ng5 {[%clk 0:01:45]}  h6 {[%clk 0:00:56]} 27. Ne4 {[%clk 0:01:44]}  Ne5 {[%clk 0:00:54]} 28. f4 {[%clk 0:01:22]}  Nc4 {[%clk 0:00:54]} 29. g4 {[%clk 0:01:18]}  Kg7 {[%clk 0:00:35]} 30. Kg3 {[%clk 0:01:11]}  Ne3 {[%clk 0:00:33]} 31. g5 {[%clk 0:00:46]}  hxg5 {[%clk 0:00:11]} 32. Nxg5 {[%clk 0:00:46]}  Nxd5 {[%clk 0:00:10]} 33. Nxf7 {[%clk 0:00:42]}  Ra8 {[%clk 0:00:06]} 34. Nxd6+ {[%clk 0:00:40]}  Kf6 {[%clk 0:00:06]} 35. Ne4+ {[%clk 0:00:40]}  Kf5 {[%clk 0:00:04]} 36. Nxc5 {[%clk 0:00:36]}  Nxc3 {[%clk 0:00:04]} 37. Rf7# {[%clk 0:00:36]} 1-0


[Site "https://www.chess.com"]

[Event "Titled Tuesday Blitz February 15 Early 2022"]
[White "Manukyan, Artyom"]
[Black "Annaberdiyev, Babageldi"]
[WhiteFideId "13305786"]
[BlackFideId "14000385"]
[WhiteElo "2034"]
[BlackElo "2332"]
[Result "0-1"]
[Round "04"]
[TimeControl "180+1"]
[Date "2022.02.15"]
[WhiteClock "0:00:13"]
[BlackClock "0:01:03"]

1. e4 {[%clk 0:03:00]}  e6 {[%clk 0:03:00]} 2. d4 {[%clk 0:03:01]}  d5 {[%clk 0:03:00]} 3. Bd3 {[%clk 0:03:01]}  Nf6 {[%clk 0:02:58]} 4. e5 {[%clk 0:02:57]}  Nfd7 {[%clk 0:02:58]} 5. Ne2 {[%clk 0:02:58]}  c5 {[%clk 0:02:56]} 6. c3 {[%clk 0:02:59]}  Nc6 {[%clk 0:02:54]} 7. a3 {[%clk 0:02:58]}  f6 {[%clk 0:02:49]} 8. f4 {[%clk 0:02:54]}  Be7 {[%clk 0:02:44]} 9. O-O {[%clk 0:02:53]}  Qb6 {[%clk 0:02:41]} 10. Kh1 {[%clk 0:02:52]}  O-O {[%clk 0:02:32]} 11. b4 {[%clk 0:02:50]}  cxd4 {[%clk 0:02:30]} 12. cxd4 {[%clk 0:02:49]}  fxe5 {[%clk 0:02:30]} 13. fxe5 {[%clk 0:02:43]}  Rxf1+ {[%clk 0:02:30]} 14. Qxf1 {[%clk 0:02:43]}  Ndxe5 {[%clk 0:02:17]} 15. dxe5 {[%clk 0:02:42]}  Nxe5 {[%clk 0:02:18]} 16. Bc2 {[%clk 0:02:29]}  Bd7 {[%clk 0:02:17]} 17. Bf4 {[%clk 0:02:15]}  Rf8 {[%clk 0:02:12]} 18. Qg1 {[%clk 0:02:14]}  Nc4 {[%clk 0:01:55]} 19. Qxb6 {[%clk 0:02:11]}  axb6 {[%clk 0:01:56]} 20. Nbc3 {[%clk 0:02:07]}  Bf6 {[%clk 0:01:52]} 21. Rd1 {[%clk 0:01:55]}  Bxc3 {[%clk 0:01:43]} 22. Bb3 {[%clk 0:01:53]}  Nxa3 {[%clk 0:01:33]} 23. Bc1 {[%clk 0:01:14]}  Nb5 {[%clk 0:01:32]} 24. Ba4 {[%clk 0:00:55]}  Bf6 {[%clk 0:01:25]} 25. Be3 {[%clk 0:00:44]}  Ra8 {[%clk 0:01:19]} 26. Bc2 {[%clk 0:00:37]}  d4 {[%clk 0:01:16]} 27. Nxd4 {[%clk 0:00:25]}  Nxd4 {[%clk 0:01:09]} 28. Bxd4 {[%clk 0:00:26]}  Bxd4 {[%clk 0:01:06]} 29. Rxd4 {[%clk 0:00:27]}  Bc6 {[%clk 0:01:06]} 30. Kg1 {[%clk 0:00:21]}  g6 {[%clk 0:01:06]} 31. Be4 {[%clk 0:00:20]}  e5 {[%clk 0:01:03]} 32. Rc4 {[%clk 0:00:15]}  b5 {[%clk 0:01:02]} 33. Bxc6 {[%clk 0:00:13]}  bxc4 {[%clk 0:01:02]} 34. Bxb7 {[%clk 0:00:12]}  Rb8 {[%clk 0:01:02]} 35. Bd5+ {[%clk 0:00:12]}  Kg7 {[%clk 0:01:03]} 36. Bxc4 {[%clk 0:00:13]}  Rxb4 {[%clk 0:01:03]} 0-1


[Site "https://www.chess.com"]

[Event "Titled Tuesday Blitz February 15 Early 2022"]
[White "Matinian, Nikita"]
[Black "Poormosavi, Seyed Kian"]
[WhiteFideId "24129100"]
[BlackFideId "12585807"]
[WhiteElo "2422"]
[BlackElo "2116"]
[Result "1-0"]
[Round "04"]
[TimeControl "180+1"]
[Date "2022.02.15"]
[WhiteClock "0:00:54"]
[BlackClock "0:00:01"]

1. e4 {[%clk 0:03:00]}  c6 {[%clk 0:02:59]} 2. d4 {[%clk 0:03:00]}  d5 {[%clk 0:03:00]} 3. exd5 {[%clk 0:03:00]}  cxd5 {[%clk 0:03:01]} 4. Bd3 {[%clk 0:02:59]}  Nc6 {[%clk 0:03:01]} 5. h3 {[%clk 0:02:56]}  Nf6 {[%clk 0:03:00]} 6. Nf3 {[%clk 0:02:56]}  g6 {[%clk 0:03:01]} 7. O-O {[%clk 0:02:55]}  Bf5 {[%clk 0:03:00]} 8. Bxf5 {[%clk 0:02:55]}  gxf5 {[%clk 0:03:01]} 9. c3 {[%clk 0:02:51]}  e6 {[%clk 0:03:00]} 10. Bf4 {[%clk 0:02:50]}  Bd6 {[%clk 0:02:59]} 11. Bxd6 {[%clk 0:02:48]}  Qxd6 {[%clk 0:03:00]} 12. Na3 {[%clk 0:02:48]}  O-O-O {[%clk 0:02:57]} 13. Nb5 {[%clk 0:02:48]}  Qb8 {[%clk 0:02:50]} 14. Qe2 {[%clk 0:02:48]}  a6 {[%clk 0:02:46]} 15. a4 {[%clk 0:02:48]}  Ne4 {[%clk 0:02:34]} 16. c4 {[%clk 0:02:25]}  axb5 {[%clk 0:01:49]} 17. cxb5 {[%clk 0:02:26]}  Na5 {[%clk 0:01:10]} 18. Ne5 {[%clk 0:02:25]}  b6 {[%clk 0:01:09]} 19. Rac1+ {[%clk 0:02:13]}  Kb7 {[%clk 0:01:08]} 20. b4 {[%clk 0:02:12]}  Nc4 {[%clk 0:01:02]} 21. Nc6 {[%clk 0:02:07]}  Qf4 {[%clk 0:00:50]} 22. a5 {[%clk 0:02:02]}  Rdg8 {[%clk 0:00:46]} 23. axb6 {[%clk 0:01:54]}  Kxb6 {[%clk 0:00:24]} 24. Na5 {[%clk 0:01:48]}  Rc8 {[%clk 0:00:22]} 25. Nxc4+ {[%clk 0:01:45]}  dxc4 {[%clk 0:00:22]} 26. Rxc4 {[%clk 0:01:46]}  Qd6 {[%clk 0:00:18]} 27. Ra1 {[%clk 0:01:40]}  Kb7 {[%clk 0:00:15]} 28. Rc5 {[%clk 0:01:07]}  Ra8 {[%clk 0:00:14]} 29. Rac1 {[%clk 0:01:05]}  Rhc8 {[%clk 0:00:12]} 30. Rc6 {[%clk 0:01:05]}  Qxb4 {[%clk 0:00:11]} 31. Qh5 {[%clk 0:00:56]}  Qe7 {[%clk 0:00:08]} 32. Qxh7 {[%clk 0:00:56]}  Qd7 {[%clk 0:00:06]} 33. d5 {[%clk 0:00:56]}  exd5 {[%clk 0:00:06]} 34. Qh6 {[%clk 0:00:55]}  d4 {[%clk 0:00:01]} 35. Rb6+ {[%clk 0:00:55]}  Ka7 {[%clk 0:00:01]} 36. Ra1# {[%clk 0:00:54]} 1-0


[Site "https://www.chess.com"]